bitfinex-derivatives/quotes_SOLF0:USTF0_20250425
["timestamp","ask_amount","ask_price","bid_price","bid_amount"]
[1745569438387,35.31231678,154.66,154.58,6.467]
[1745569438587,6.466,154.61,154.58,6.467]
[1745569438883,35.31231678,154.66,154.6,6.466]
[1745569439087,6.4653,154.63,154.6,6.466]
[1745569439687,6.4654,154.62,154.6,6.466]
[1745569439891,6.4654,154.62,154.59,6.4664]
[1745569440388,6.4658,154.61,154.59,6.4664]
[1745569441291,6.4658,154.61,154.59,12.16039945]
[1745569441592,26.4147,154.66,154.54,27.2235]
[1745569441790,5.69399945,154.61,154.56,5.69399945]
[1745569442491,6.4667,154.59,154.56,12.16169945]
[1745569442688,5.69399945,154.63,154.56,5.69399945]
[1745569442885,5.69399945,154.63,154.58,5.69399945]
[1745569443087,6.4662,154.6,154.58,5.69399945]
[1745569444686,6.4662,154.6,154.58,12.16099945]
[1745569445290,6.4662,154.6,154.58,5.69399945]
[1745569445490,5.69399945,154.61,154.56,5.69399945]
[1745569445989,6.4671,154.58,154.56,5.69399945]
[1745569446288,5.69399945,154.59,154.54,32.91749945]
[1745569446487,5.69399945,154.59,154.54,29.13399945]
[1745569446789,6.4677,154.57,154.54,29.13399945]
[1745569447082,5.69399945,154.61,154.54,29.13399945]
[1745569447296,6.4666,154.59,154.56,5.69399945]
[1745569447588,6.4666,154.59,154.56,12.16159945]
[1745569448590,6.4666,154.59,154.57,6.4673]
[1745569449289,6.4666,154.59,154.56,12.16159945]
[1745569450589,6.4672,154.58,154.56,5.69399945]
[1745569450891,5.69399945,154.59,154.54,29.13399945]
[1745569451091,1.8518,154.6,154.54,29.13399945]
[1745569451292,1.8518,154.6,154.56,5.69399945]
[1745569451691,6.4672,154.58,154.56,5.69399945]
[1745569453595,6.4674,154.57,154.56,5.69399945]
[1745569454397,6.4674,154.57,154.54,35.60249945]
[1745569455493,6.468,154.56,154.54,29.13399945]
[1745569457194,6.4683,154.55,154.54,5.69399945]
[1745569457797,5.69399945,154.57,154.51,23.44]
[1745569457997,5.69399945,154.55,154.51,23.44]
[1745569458306,6.4692,154.53,154.51,23.44]
[1745569459204,5.69399945,154.55,154.49,5.69399945]
[1745569459609,5.69399945,154.55,154.5,6.4703]
[1745569459610,6.4694,154.53,154.5,6.4703]
[1745569459913,5.69399945,154.55,154.49,5.69399945]
[1745569460111,6.4689,154.54,154.49,5.69399945]
[1745569460407,5.69399945,154.55,154.47,496.6517458]
[1745569460614,6.4698,154.52,154.49,6.4708]
[1745569461813,12.16329945,154.53,154.5,6.4703]
[1745569463315,12.16329945,154.53,154.51,6.4699]
[1745569463514,5.69399945,154.53,154.48,5.69399945]
[1745569463714,5.69399945,154.55,154.5,5.69399945]
[1745569463915,6.4688,154.54,154.51,6.4697]
[1745569464116,5.69399945,154.55,154.5,5.69399945]
[1745569464313,5.69399945,154.56,154.5,5.69399945]
[1745569464512,6.4681,154.56,154.52,5.69399945]
[1745569465013,5.69399945,154.57,154.52,5.69399945]
[1745569465213,6.4683,154.55,154.52,5.69399945]
[1745569465416,5.69399945,154.57,154.53,6.4688]
[1745569466114,6.468,154.56,154.53,6.4688]
[1745569467213,5.69399945,154.57,154.51,5.69399945]
[1745569468516,5.69399945,154.57,154.51,12.16369945]
[1745569469112,6.4688,154.54,154.51,12.16369945]
[1745569470216,6.4692,154.53,154.51,5.69399945]
[1745569470419,6.4692,154.53,154.5,29.9102]
[1745569470817,6.4696,154.52,154.5,29.9102]
[1745569471723,6.4696,154.52,154.5,23.44]
[1745569472217,5.69399945,154.55,154.5,29.9103]
[1745569472424,6.4694,154.53,154.5,29.9103]
[1745569472921,6.4694,154.53,154.5,6.4703]
[1745569473123,5.69399945,154.55,154.49,12.16469945]
[1745569473323,5.69399945,154.53,154.49,12.16469945]
[1745569473723,6.4696,154.52,154.49,12.16469945]
[1745569474221,6.4696,154.52,154.5,6.4703]
[1745569474519,6.4696,154.52,154.49,5.69399945]
[1745569474719,5.69399945,154.53,154.47,9.64949945]
[1745569474925,5.69399945,154.53,154.48,6.471]
[1745569475128,6.4704,154.5,154.47,5.69399945]
[1745569475622,6.471,154.49,154.47,5.69399945]
[1745569475925,5.69399945,154.51,154.47,12.16539945]
[1745569476119,6.471,154.49,154.47,5.69399945]
[1745569476515,6.471,154.49,154.44,23.44]
[1745569476724,6.4706,154.5,154.45,5.69399945]
[1745569476925,5.69399945,154.51,154.45,5.69399945]
[1745569477125,5.69399945,154.51,154.46,6.4718]
[1745569477325,5.69399945,154.51,154.45,5.69399945]
[1745569477624,5.69399945,154.51,154.47,6.4714]
[1745569477825,6.471,154.49,154.45,5.69399945]
[1745569478328,5.69399945,154.51,154.45,5.69399945]
[1745569478527,6.4705,154.5,154.45,5.69399945]
[1745569479525,6.4705,154.5,154.48,6.4711]
[1745569479926,5.69399945,154.53,154.49,5.69399945]
[1745569480121,5.69399945,154.53,154.5,6.4703]
[1745569480321,5.69399945,154.53,154.49,5.69399945]
[1745569480926,23.44,154.54,154.51,5.69399945]
[1745569481227,23.44,154.57,154.53,5.69399945]
[1745569481628,6.4686,154.55,154.53,5.69399945]
[1745569481929,6.4686,154.55,154.52,6.4694]
[1745569482829,23.44,154.57,154.51,5.69399945]
[1745569483325,5.69399945,154.56,154.51,5.69399945]
[1745569483526,6.4685,154.55,154.52,6.4693]
[1745569484330,6.4687,154.54,154.51,12.16369945]
[1745569486331,23.44,154.57,154.51,5.69399945]
[1745569486832,6.4677,154.57,154.53,12.16279945]
[1745569487029,5.69399945,154.58,154.53,12.16279945]
[1745569487230,6.4681,154.56,154.53,12.16279945]
[1745569488036,5.69399945,154.58,154.53,5.69399945]
[1745569488535,6.4686,154.55,154.53,5.69399945]
[1745569489636,5.69399945,154.56,154.51,12.16369945]
[1745569490134,5.69399945,154.54,154.49,29.13399945]
[1745569490635,6.4693,154.53,154.5,6.4703]
[1745569492436,12.16299945,154.54,154.5,6.4702]
[1745569492937,6.4691,154.53,154.5,6.4702]
[1745569497038,6.4698,154.52,154.49,35.60459945]
[1745569497844,6.4698,154.52,154.49,29.9106]
[1745569498038,6.4698,154.52,154.49,35.60459945]
[1745569498742,6.4702,154.51,154.49,29.13399945]
[1745569498943,5.69399945,154.54,154.49,29.13399945]
[1745569499442,6.4694,154.53,154.5,6.4704]
[1745569500544,6.4697,154.52,154.5,6.4704]
[1745569500842,5.69399945,154.54,154.5,6.4704]
[1745569501042,12.16289945,154.54,154.51,6.4698]
[1745569502646,12.16289945,154.54,154.49,29.13399945]
[1745569503341,6.4684,154.55,154.49,29.13399945]
[1745569503541,5.69399945,154.56,154.51,5.69399945]
[1745569503846,5.69399945,154.57,154.51,5.69399945]
[1745569504048,5.69399945,154.57,154.53,5.69399945]
[1745569504549,12.16169945,154.57,154.54,6.4685]
[1745569505249,6.4682,154.56,154.53,12.16309945]
[1745569507048,5.69399945,154.55,154.49,29.13399945]
[1745569507350,5.69399945,154.53,154.49,29.13399945]
[1745569507953,6.4696,154.52,154.49,35.60459945]
[1745569508153,5.69399945,154.53,154.49,29.13399945]
[1745569508651,12.16329945,154.53,154.5,6.47]
[1745569508950,5.69399945,154.53,154.49,23.44]
[1745569509150,12.16329945,154.53,154.5,6.4702]
[1745569510554,12.16329945,154.53,154.51,6.4699]
[1745569512454,5.69399945,154.53,154.51,6.4698]
[1745569512653,5.69399945,154.53,154.49,23.44]
[1745569513157,5.69399945,154.53,154.51,6.4697]
[1745569514359,25.3922,154.62,154.52,5.69399945]
[1745569514558,23.44,154.62,154.57,5.69399945]
[1745569514857,29.9057,154.62,154.59,6.4664]
[1745569515058,23.44,154.62,154.59,6.4664]
[1745569515258,23.44,154.62,154.59,5.69399945]
[1745569515460,5.69399945,154.63,154.59,5.69399945]
[1745569515660,12.15919945,154.63,154.59,12.16039945]
[1745569517061,12.15919945,154.63,154.6,6.4662]
[1745569517663,6.4654,154.62,154.59,12.16039945]
[1745569520166,12.15909945,154.63,154.6,6.4661]
[1745569520465,5.69399945,154.63,154.59,5.69399945]
[1745569520763,6.4656,154.62,154.59,5.69399945]
[1745569520966,5.69399945,154.64,154.59,12.16039945]
[1745569521160,6.4651,154.63,154.59,12.16039945]
[1745569522268,12.15869945,154.64,154.59,5.69399945]
[1745569522768,5.69399945,154.64,154.61,6.4655]
[1745569523067,1.0247,154.66,154.61,5.69399945]
[1745569523068,6.71869945,154.66,154.61,5.69399945]
[1745569523368,7.4884,154.66,154.62,6.465]
[1745569524767,6.4642,154.65,154.62,6.465]
[1745569525268,6.4642,154.65,154.63,5.69399945]
[1745569526266,7.4886,154.66,154.63,5.69399945]
[1745569526973,1.0247,154.66,154.63,5.69399945]
[1745569527268,1.0247,154.66,154.65,5.69399945]
[1745569528170,1.0247,154.66,154.65,12.15809945]
[1745569528570,23.44,154.71,154.65,5.69399945]
[1745569528871,6.462,154.7,154.68,5.69399945]
[1745569529070,5.69399945,154.73,154.68,5.69399945]
[1745569529369,6.4624,154.69,154.68,5.69399945]
[1745569529664,5.69399945,154.73,154.68,5.69399945]
[1745569529971,6.4619,154.71,154.68,5.69399945]
[1745569530271,5.69399945,154.73,154.68,5.69399945]
[1745569531477,6.4619,154.71,154.68,5.69399945]
[1745569531680,6.4619,154.71,154.65,23.44]
[1745569531681,5.69399945,154.71,154.66,12.15749945]
[1745569531875,5.69399945,154.71,154.66,5.69399945]
[1745569532577,6.4622,154.7,154.67,6.4632]
[1745569535779,12.15579945,154.71,154.66,5.69399945]
[1745569536279,5.69399945,154.71,154.66,5.69399945]
[1745569536578,6.4622,154.7,154.66,12.15759945]
[1745569536970,5.69399945,154.71,154.66,12.15759945]
[1745569537281,5.69399945,154.69,154.65,29.904]
[1745569537680,5.69399945,154.69,154.65,23.44]
[1745569539177,12.15669945,154.69,154.66,6.4633]
[1745569540180,6.4628,154.68,154.65,29.9039]
[1745569540681,5.69399945,154.69,154.65,23.44]
[1745569540982,5.69399945,154.68,154.63,5.69399945]
[1745569541684,5.69399945,154.64,154.59,5.69399945]
[1745569541877,23.42,154.63,154.59,5.69399945]
[1745569542187,5.69399945,154.62,154.57,5.69399945]
[1745569542374,23.42,154.63,154.59,5.69399945]
[1745569542884,6.4654,154.62,154.59,12.16039945]
[1745569543078,23.42,154.63,154.59,5.69399945]
[1745569543484,29.8852,154.63,154.59,12.16039945]
[1745569545287,5.69399945,154.62,154.57,6.4671]
[1745569545492,5.69399945,154.62,154.56,5.69399945]
[1745569545785,6.466,154.61,154.58,6.467]
[1745569546390,6.4663,154.6,154.57,6.4674]
[1745569546688,23.42,154.59,154.57,6.4674]
[1745569547090,23.42,154.59,154.56,6.4677]
[1745569547293,23.42,154.59,154.55,3.9109]
[1745569547586,29.8867,154.59,154.55,1.9237]
[1745569547791,29.8867,154.59,154.56,6.4676]
[1745569548590,6.467,154.58,154.55,6.4681]
[1745569549194,5.69399945,154.58,154.54,5.69399945]
[1745569549792,6.4678,154.57,154.54,12.16259945]
[1745569549987,5.69399945,154.58,154.52,1.8498]
[1745569549988,5.69399945,154.58,154.52,7.54379945]
[1745569550189,5.69399945,154.54,154.49,5.69399945]
[1745569550393,29.11399945,154.54,154.5,6.4702]
[1745569550598,29.11399945,154.54,154.49,5.69399945]
[1745569550790,6.4698,154.52,154.49,12.16439945]
[1745569552388,6.4698,154.52,154.49,6.4704]
[1745569552694,12.16379945,154.52,154.49,6.4704]
[1745569553196,6.4711,154.49,154.46,6.4717]
[1745569553393,23.42,154.48,154.46,6.4717]
[1745569553589,23.42,154.48,154.44,5.69399945]
[1745569553785,29.8912,154.48,154.45,6.4722]
[1745569554491,23.42,154.48,154.45,6.4722]
[1745569554696,23.42,154.48,154.46,6.472]
[1745569554994,23.42,154.48,154.44,5.69399945]
[1745569555194,29.8913,154.48,154.46,6.472]
[1745569555393,23.42,154.48,154.46,6.472]
[1745569557395,23.42,154.48,154.47,6.4716]
[1745569557791,7.92351817,154.54,154.44,7.92351817]
[1745569557996,23.44,154.53,154.44,7.92351817]
[1745569558593,6.4703,154.51,154.47,6.4714]
[1745569558889,7.92351817,154.52,154.42,7.92351817]
[1745569559495,6.4708,154.49,154.47,6.4716]
[1745569559695,23.44,154.48,154.47,6.4716]
[1745569561095,23.44,154.48,154.46,6.4719]
[1745569562395,23.44,154.48,154.47,6.4716]
[1745569562594,23.44,154.48,154.39,5.5824]
[1745569562793,31.36351817,154.48,154.39,5.5824]
[1745569562994,6.4723,154.46,154.42,6.4735]
[1745569563398,31.36351817,154.48,154.39,5.5824]
[1745569563697,6.4728,154.45,154.41,6.4739]
[1745569564092,23.42,154.44,154.38,6.4753]
[1745569564398,7.92351817,154.46,154.38,6.4753]
[1745569564399,23.42,154.43,154.38,6.4753]
[1745569564895,6.4738,154.42,154.38,6.4753]
[1745569565897,6.4738,154.42,154.39,6.4749]
[1745569566097,29.9138,154.42,154.39,6.4749]
[1745569566298,7.92351817,154.46,154.35,11.73661817]
[1745569566299,23.44,154.46,154.37,7.92351817]
[1745569566498,23.44,154.46,154.41,6.4739]
[1745569566998,6.4731,154.44,154.41,6.4739]
[1745569567900,23.44,154.46,154.41,6.4739]
[1745569568399,6.4727,154.45,154.42,6.4737]
[1745569568800,23.44,154.46,154.39,7.92351817]
[1745569568993,23.44,154.46,154.4,1.8813]
[1745569569202,23.44,154.46,154.41,11.57141817]
[1745569569403,465.88,154.48,154.41,11.57141817]
[1745569569602,23.44,154.49,154.41,11.57141817]
[1745569569800,6.4719,154.47,154.41,11.57141817]
[1745569570298,6.4719,154.47,154.44,6.4725]
[1745569570505,6.4719,154.47,154.41,11.57141817]
[1745569571005,6.4721,154.46,154.44,6.4727]
[1745569571205,23.44,154.49,154.44,6.4727]
[1745569571708,6.4721,154.46,154.44,6.4727]
[1745569572098,23.44,154.49,154.44,6.4727]
[1745569572307,6.472,154.47,154.44,6.4727]
[1745569573105,6.4721,154.46,154.44,6.4727]
[1745569574000,6.4721,154.46,154.43,6.4732]
[1745569575013,23.44,154.49,154.41,11.57141817]
[1745569575014,6.4718,154.47,154.41,11.57141817]
[1745569575306,23.44,154.49,154.43,7.92351817]
[1745569575507,6.4714,154.48,154.45,6.4722]
[1745569575905,23.44,154.49,154.43,7.92351817]
[1745569576503,29.9111,154.49,154.46,6.472]
[1745569576708,23.44,154.49,154.46,6.472]
[1745569577104,29.911,154.49,154.46,6.472]
[1745569577607,23.44,154.52,154.47,6.4716]
[1745569577800,23.44,154.52,154.43,7.92351817]
[1745569578003,23.44,154.52,154.44,23.44]
[1745569578004,31.36351817,154.52,154.44,23.44]
[1745569578309,6.4716,154.47,154.41,35.01141817]
[1745569578509,31.36351817,154.52,154.41,35.01141817]
[1745569578708,6.471,154.49,154.46,6.4719]
[1745569578906,31.36351817,154.52,154.46,6.4719]
[1745569579207,6.4714,154.48,154.45,6.4721]
[1745569579509,31.36351817,154.52,154.41,35.01141817]
[1745569579707,31.36351817,154.52,154.43,7.92351817]
[1745569580007,6.471,154.49,154.43,7.92351817]
[1745569580508,6.471,154.49,154.46,6.4718]
[1745569580806,6.4713,154.48,154.46,6.4718]
[1745569581008,31.36351817,154.52,154.41,35.01141817]
[1745569581408,7.92351817,154.5,154.41,27.0879]
[1745569581610,7.92351817,154.5,154.42,6.4736]
[1745569581906,7.92351817,154.48,154.38,23.44]
[1745569582110,7.92351817,154.46,154.36,34.03435557]
[1745569582409,6.4739,154.42,154.39,6.4747]
[1745569583101,6.4735,154.43,154.39,6.4747]
[1745569583301,6.4735,154.43,154.36,9.42083889]
[1745569583505,6.4732,154.44,154.37,7.92351817]
[1745569583807,23.44,154.45,154.37,7.92351817]
[1745569584211,6.4729,154.44,154.37,7.92351817]
[1745569584411,23.44,154.46,154.43,6.4732]
[1745569585010,23.44,154.46,154.44,6.4728]
[1745569585712,23.44,154.46,154.43,6.4731]
[1745569585912,23.44,154.46,154.39,31.36351817]
[1745569586312,23.44,154.46,154.42,6.4737]
[1745569586512,23.44,154.46,154.39,31.36351817]
[1745569586814,23.44,154.46,154.42,6.4735]
[1745569587016,6.4727,154.45,154.42,6.4735]
[1745569588015,23.44,154.5,154.41,7.92351817]
[1745569588217,23.44,154.5,154.43,7.92351817]
[1745569588518,29.9106,154.5,154.46,6.4717]
[1745569589812,23.44,154.5,154.46,6.4717]
[1745569590017,6.4709,154.49,154.46,6.4717]
[1745569590417,6.4712,154.48,154.46,6.4717]
[1745569590718,23.44,154.5,154.46,6.4717]
[1745569590920,6.4723,154.46,154.4,34.09075557]
[1745569591120,31.36351817,154.5,154.4,34.09075557]
[1745569591320,31.36351817,154.5,154.43,6.473]
[1745569591519,6.472,154.47,154.43,6.473]
[1745569592120,6.4721,154.46,154.43,6.473]
[1745569592325,6.4721,154.46,154.42,6.4735]
[1745569592520,6.4721,154.46,154.4,11.46103889]
[1745569592821,6.4721,154.46,154.43,6.4731]
[1745569594319,6.4725,154.45,154.42,6.4735]
[1745569594725,31.36351817,154.46,154.38,30.17295557]
[1745569594917,6.474,154.42,154.38,36.64805557]
[1745569595124,7.92351817,154.44,154.38,30.17295557]
[1745569595324,6.475,154.39,154.38,30.17295557]
[1745569596326,6.475,154.39,154.35,6.4764]
[1745569596823,6.4754,154.38,154.35,6.4764]
[1745569597225,23.44,154.41,154.36,6.4762]
[1745569597426,6.4754,154.39,154.34,32.96753889]
[1745569597628,23.44,154.41,154.34,32.96753889]
[1745569597925,6.4761,154.37,154.34,7.54323889]
[1745569598430,6.4761,154.37,154.34,14.02023889]
[1745569598624,6.4761,154.37,154.34,6.477]
[1745569598826,9.92351817,154.4,154.31,57.38295557]
[1745569599128,9.92351817,154.4,154.31,30.17295557]
[1745569599327,6.4765,154.36,154.31,30.17295557]
[1745569599529,29.9165,154.36,154.32,6.4777]
[1745569599730,23.44,154.36,154.32,6.4777]
[1745569599923,23.44,154.36,154.31,30.17295557]
[1745569600129,23.44,154.36,154.33,6.4774]
[1745569600430,23.44,154.36,154.31,30.17295557]
[1745569600627,23.44,154.36,154.32,6.4775]
[1745569600831,23.44,154.36,154.31,30.17295557]
[1745569602130,23.44,154.36,154.33,6.4772]
[1745569602331,23.44,154.36,154.29,7.92351817]
[1745569602631,23.44,154.36,154.33,6.4773]
[1745569603126,23.44,154.36,154.3,6.4786]
[1745569603330,23.44,154.36,154.27,7.92351817]
[1745569603726,29.9163,154.36,154.32,6.4778]
[1745569604631,23.44,154.36,154.32,6.4778]
[1745569604930,23.44,154.36,154.33,6.4774]
[1745569605132,23.44,154.36,154.29,7.92351817]
[1745569605432,23.44,154.36,154.33,6.4775]
[1745569606128,23.44,154.36,154.31,7.92351817]
[1745569606431,23.44,154.39,154.33,7.92351817]
[1745569606632,23.44,154.39,154.36,6.4759]
[1745569608828,29.915,154.39,154.36,6.4759]
[1745569609230,23.44,154.39,154.37,6.4758]
[1745569609727,23.44,154.39,154.33,7.92351817]
[1745569610032,23.44,154.39,154.36,6.4761]
[1745569610232,29.9151,154.39,154.36,6.4761]
[1745569610636,29.9151,154.39,154.35,6.4765]
[1745569610836,6.4755,154.38,154.35,6.4765]
[1745569611940,29.9151,154.39,154.36,6.4762]
[1745569612136,29.9151,154.39,154.33,7.92351817]
[1745569612839,6.4754,154.38,154.33,7.92351817]
[1745569613238,6.4754,154.38,154.35,6.4763]
[1745569613637,29.9151,154.39,154.33,7.92351817]
[1745569614038,23.44,154.39,154.31,13.71791817]
[1745569614338,6.4761,154.37,154.31,13.71791817]
[1745569615539,6.4761,154.37,154.34,6.477]
[1745569617842,23.44,154.39,154.33,6.4772]
[1745569618041,23.44,154.39,154.31,5.7944]
[1745569618241,23.44,154.39,154.31,3.9642]
[1745569618442,6.4765,154.36,154.32,6.4775]
[1745569618644,23.44,154.39,154.31,3.9642]
[1745569619045,6.4766,154.36,154.32,6.4775]
[1745569619240,7.92351817,154.41,154.31,3.9642]
[1745569619448,7.92351817,154.53,154.4,7.92351817]
[1745569619744,13.74031817,154.55,154.45,7.92351817]
[1745569619939,30.24299,154.56,154.47,7.92351817]
[1745569620142,30.24299,154.56,154.45,23.44]
[1745569620343,30.24299,154.56,154.47,7.92351817]
[1745569620643,7.92351817,154.55,154.45,7.92351817]
[1745569620848,9.94531817,154.55,154.44,23.44]
[1745569621048,7.92351817,154.47,154.32,355.0]
[1745569621249,7.92351817,154.44,154.32,362.92351817]
[1745569621549,23.44,154.43,154.33,7.92351817]
[1745569621746,9.85061817,154.46,154.34,1.837]
[1745569621946,23.44,154.45,154.35,7.92351817]
[1745569622145,23.46,154.45,154.4,6.4744]
[1745569622348,23.46,154.45,154.37,32.40351817]
[1745569622549,32.40351817,154.48,154.37,32.40351817]
[1745569622748,6.4723,154.46,154.38,6.4751]
[1745569622949,32.40351817,154.48,154.37,32.40351817]
[1745569623548,24.48,154.48,154.39,7.92351817]
[1745569623753,24.48,154.48,154.41,7.92351817]
[1745569624053,24.48,154.48,154.42,6.4734]
[1745569624756,24.48,154.48,154.43,6.4732]
[1745569625053,24.48,154.48,154.41,32.40351817]
[1745569625254,24.48,154.48,154.41,24.48]
[1745569626054,6.472,154.47,154.41,24.48]
[1745569626256,24.48,154.48,154.41,24.48]
[1745569627657,24.48,154.48,154.43,6.4732]
[1745569627856,8.3957,154.5,154.43,6.4732]
[1745569628058,1.925,154.5,154.43,6.4732]
[1745569628755,490.84,154.51,154.41,24.48]
[1745569628954,24.48,154.51,154.41,37.15946405]
[1745569629361,30.9502,154.51,154.41,37.15946405]
[1745569629761,24.48,154.51,154.41,37.15946405]
[1745569629960,6.4708,154.49,154.44,6.4726]
[1745569630460,6.4707,154.5,154.45,6.4722]
[1745569630665,26.375,154.54,154.45,24.48]
[1745569631058,24.48,154.54,154.48,6.4709]
[1745569631257,24.48,154.54,154.47,12.67946405]
[1745569631456,6.4693,154.53,154.48,6.4709]
[1745569631656,24.48,154.54,154.48,6.4709]
[1745569631857,24.48,154.54,154.46,3.7985]
[1745569632260,6.4703,154.51,154.47,6.4714]
[1745569632462,24.48,154.54,154.46,3.7985]
[1745569632962,30.24299,154.56,154.47,12.67946405]
[1745569633360,30.24299,154.56,154.5,12.67946405]
[1745569633664,30.24299,154.56,154.53,6.4688]
[1745569634466,30.24299,154.56,154.54,6.4687]
[1745569634655,30.24299,154.56,154.51,24.46]
[1745569634966,30.24299,154.56,154.54,6.4687]
[1745569635265,30.24299,154.56,154.51,24.46]
[1745569638265,36.71099,154.56,154.53,6.4689]
[1745569639266,30.24299,154.56,154.54,6.4687]
[1745569639464,30.24299,154.56,154.51,24.46]
[1745569639763,30.24299,154.56,154.55,6.4683]
[1745569643278,30.24299,154.56,154.52,1.8317]
[1745569643462,6.4688,154.54,154.47,14.65436405]
[1745569643667,30.24299,154.56,154.48,24.46]
[1745569643962,30.24299,154.56,154.5,6.4701]
[1745569644671,6.4691,154.53,154.51,6.4699]
[1745569644969,30.24299,154.56,154.51,6.4699]
[1745569645372,6.469,154.54,154.51,6.4699]
[1745569645669,6.469,154.54,154.48,32.37723698]
[1745569645868,6.469,154.54,154.5,6.4702]
[1745569646272,30.24299,154.56,154.5,6.4702]
[1745569646572,6.4692,154.53,154.5,6.4702]
[1745569650684,6.4692,154.53,154.49,6.4706]
[1745569650874,6.4696,154.52,154.49,6.4706]
[1745569651478,6.4693,154.53,154.5,6.4703]
[1745569651680,30.24299,154.56,154.48,24.46]
[1745569652277,24.46,154.55,154.48,24.46]
[1745569654482,6.4698,154.52,154.49,6.4706]
[1745569655079,6.4698,154.52,154.5,6.4703]
[1745569655278,30.24299,154.56,154.5,7.91723698]
[1745569655882,30.24299,154.56,154.52,7.91723698]
[1745569656080,30.24299,154.56,154.52,32.15723698]
[1745569656883,30.24299,154.56,154.55,6.4683]
[1745569659085,30.24299,154.56,154.54,6.4686]
[1745569659285,34.10593698,154.62,154.54,7.91723698]
[1745569659286,1.9487,154.62,154.54,7.91723698]
[1745569659584,24.24,154.65,154.58,7.91723698]
[1745569659781,6.4657,154.62,154.59,6.4664]
[1745569660185,24.24,154.65,154.59,6.4664]
[1745569660386,6.4656,154.62,154.59,6.4664]
[1745569660684,24.24,154.65,154.61,6.4658]
[1745569661187,24.24,154.65,154.6,6.466]
[1745569661687,6.4649,154.63,154.6,6.466]
[1745569661883,24.24,154.65,154.59,6.4664]
[1745569662588,24.24,154.65,154.6,6.4662]
[1745569663285,6.4653,154.63,154.6,6.4662]
[1745569663481,1.8591,154.66,154.58,7.91723698]
[1745569663785,1.8591,154.66,154.6,7.91723698]
[1745569663989,6.4642,154.65,154.62,6.4651]
[1745569664190,1.8591,154.66,154.6,7.91723698]
[1745569664787,24.24,154.68,154.6,7.91723698]
[1745569664985,24.24,154.68,154.6,32.15723698]
[1745569665184,24.24,154.68,154.62,7.91723698]
[1745569665688,1.998,154.69,154.62,7.91723698]
[1745569665885,6.4631,154.68,154.64,6.4645]
[1745569666489,6.4634,154.67,154.63,6.4649]
[1745569667788,6.463,154.68,154.64,6.4644]
[1745569667989,24.24,154.71,154.64,6.4644]
[1745569668593,24.24,154.71,154.65,6.4641]
[1745569668792,24.24,154.71,154.62,7.91723698]
[1745569669796,24.24,154.71,154.64,7.91723698]
[1745569669992,24.24,154.71,154.64,32.15723698]
[1745569670189,6.4625,154.69,154.65,6.4639]
[1745569670591,6.4625,154.69,154.64,32.15723698]
[1745569670985,6.4625,154.69,154.66,6.4634]
[1745569671281,6.4621,154.7,154.64,32.15723698]
[1745569671589,6.4619,154.71,154.67,6.4631]
[1745569671994,1.9087,154.72,154.64,32.15723698]
[1745569672194,6.4622,154.7,154.66,6.4635]
[1745569672688,6.4622,154.7,154.67,6.4631]
[1745569672884,6.4618,154.71,154.67,6.4631]
[1745569673290,6.462,154.7,154.67,6.4631]
[1745569673691,1.9411,154.73,154.67,6.4631]
[1745569673891,6.4618,154.71,154.67,6.4631]
[1745569674090,1.9411,154.73,154.67,6.4631]
[1745569674393,6.462,154.71,154.67,6.4631]
[1745569674691,1.9411,154.73,154.66,14.38073698]
[1745569674894,1.9411,154.73,154.66,7.91723698]
[1745569675083,6.4618,154.71,154.66,7.91723698]
[1745569675396,6.4618,154.71,154.67,6.463]
[1745569675991,6.4621,154.7,154.66,14.38073698]
[1745569676192,1.9411,154.73,154.66,14.38073698]
[1745569676493,1.9411,154.73,154.66,7.91723698]